[Event "*** Titled Tuesday Blitz"]
[Site "Chess.com"]
[Date "2020.05.05"]
[Round "2"]
[White "DonBroca"]
[Black "Loiacono_Antonio"]
[Result "1-0"]
[WhiteElo "2117"]
[BlackElo "2369"]
[TimeControl "180+1"]
[EndTime "10:17:55 PDT"]
[Termination "DonBroca won by resignation"]

1. e4 {[%clk 0:03:00.9]} 1... c6 {[%clk 0:02:56.9]} 2. d4 {[%clk 0:03:00.3]}
2... d5 {[%clk 0:02:53.6]} 3. Nc3 {[%clk 0:03:00.7]} 3... dxe4 {[%clk
0:02:53.8]} 4. Nxe4 {[%clk 0:03:01.6]} 4... Nf6 {[%clk 0:02:54.4]} 5. Qd3 {[%clk
0:03:00]} 5... Nxe4 {[%clk 0:02:51.4]} 6. Qxe4 {[%clk 0:03:00.9]} 6... Qd5
{[%clk 0:02:51.6]} 7. Bd3 {[%clk 0:02:58.8]} 7... Qxe4+ {[%clk 0:02:50.4]} 8.
Bxe4 {[%clk 0:02:58.7]} 8... Nd7 {[%clk 0:02:51]} 9. Nf3 {[%clk 0:02:54]} 9...
Nf6 {[%clk 0:02:51.2]} 10. Bd3 {[%clk 0:02:54.2]} 10... Bg4 {[%clk 0:02:51.4]}
11. Ne5 {[%clk 0:02:51.3]} 11... Bh5 {[%clk 0:02:51.6]} 12. Bf4 {[%clk
0:02:46.3]} 12... e6 {[%clk 0:02:51.5]} 13. f3 {[%clk 0:02:44]} 13... Rd8 {[%clk
0:02:48.8]} 14. c3 {[%clk 0:02:41]} 14... Be7 {[%clk 0:02:47.2]} 15. O-O-O
{[%clk 0:02:39.7]} 15... O-O {[%clk 0:02:45.6]} 16. g4 {[%clk 0:02:35]} 16...
Bg6 {[%clk 0:02:45.7]} 17. Bxg6 {[%clk 0:02:24.2]} 17... hxg6 {[%clk 0:02:46.6]}
18. h4 {[%clk 0:02:16.5]} 18... Nd5 {[%clk 0:02:44.6]} 19. Bd2 {[%clk
0:02:15.4]} 19... Bf6 {[%clk 0:02:39.2]} 20. h5 {[%clk 0:02:10.8]} 20... gxh5
{[%clk 0:02:37.2]} 21. Rxh5 {[%clk 0:02:06]} 21... g6 {[%clk 0:02:34.8]} 22. Rh2
{[%clk 0:02:01]} 22... Kg7 {[%clk 0:02:12.5]} 23. Rdh1 {[%clk 0:01:58.3]} 23...
Bxe5 {[%clk 0:02:05.8]} 24. dxe5 {[%clk 0:01:41.1]} 24... Rh8 {[%clk 0:02:02.5]}
25. Rxh8 {[%clk 0:01:31.7]} 25... Rxh8 {[%clk 0:01:56.2]} 26. Rxh8 {[%clk
0:01:32.6]} 26... Kxh8 {[%clk 0:01:57.1]} 27. c4 {[%clk 0:01:32.4]} 27... Nb6
{[%clk 0:01:55.4]} 28. b3 {[%clk 0:01:32.2]} 28... Kg7 {[%clk 0:01:54.1]} 29.
Be3 {[%clk 0:01:29.4]} 29... Kf8 {[%clk 0:01:54.1]} 30. Bxb6 {[%clk 0:01:25.8]}
30... axb6 {[%clk 0:01:55]} 31. Kd2 {[%clk 0:01:21]} 31... g5 {[%clk 0:01:48.1]}
32. Ke3 {[%clk 0:01:18.5]} 32... Ke7 {[%clk 0:01:45.8]} 33. f4 {[%clk
0:01:16.8]} 33... gxf4+ {[%clk 0:01:39.8]} 34. Kxf4 {[%clk 0:01:16]} 34... Kf8
{[%clk 0:01:40.7]} 35. Kg5 {[%clk 0:01:07.1]} 35... Kg7 {[%clk 0:01:40.8]} 36.
a3 {[%clk 0:00:51.6]} 36... b5 {[%clk 0:01:38.1]} 37. cxb5 {[%clk 0:00:47.9]}
37... cxb5 {[%clk 0:01:37.9]} 38. a4 {[%clk 0:00:32.4]} 38... bxa4 {[%clk
0:01:37]} 39. bxa4 {[%clk 0:00:33.3]} 39... b6 {[%clk 0:01:37.3]} 40. Kf4 {[%clk
0:00:22.3]} 40... Kh6 {[%clk 0:01:35]} 41. Ke4 {[%clk 0:00:20.2]} 41... Kg5
{[%clk 0:01:34.4]} 42. Kf3 {[%clk 0:00:20.6]} 42... Kh6 {[%clk 0:01:30.7]} 43.
Kf4 {[%clk 0:00:20.3]} 43... Kg6 {[%clk 0:01:31.1]} 44. Ke4 {[%clk 0:00:19.1]}
44... Kg7 {[%clk 0:01:25.9]} 45. Kd4 {[%clk 0:00:17.5]} 45... Kg6 {[%clk
0:01:20.5]} 46. Kc4 {[%clk 0:00:17.9]} 46... Kg5 {[%clk 0:01:21]} 47. Kb5 {[%clk
0:00:18]} 47... Kxg4 {[%clk 0:01:21.3]} 48. Kxb6 {[%clk 0:00:18.5]} 48... Kf5
{[%clk 0:01:19.8]} 49. a5 {[%clk 0:00:18.5]} 49... Kxe5 {[%clk 0:01:20]} 50. a6
{[%clk 0:00:19.1]} 50... f5 {[%clk 0:01:20.7]} 51. a7 {[%clk 0:00:19.7]} 51...
f4 {[%clk 0:01:21.3]} 52. a8=Q {[%clk 0:00:20.6]} 52... Kf5 {[%clk 0:01:21.5]}
53. Qf3 {[%clk 0:00:20.9]} 53... e5 {[%clk 0:01:21.9]} 54. Kc5 {[%clk
0:00:21.1]} 54... e4 {[%clk 0:01:22.4]} 55. Qh5+ {[%clk 0:00:21.3]} 55... Kf6
{[%clk 0:01:22.7]} 56. Kd4 {[%clk 0:00:21.3]} 56... f3 {[%clk 0:01:23.1]} 57.
Kxe4 {[%clk 0:00:21]} 1-0

[Event "*** Titled Tuesday Blitz"]
[Site "Chess.com"]
[Date "2020.05.05"]
[Round "2"]
[White "r31415"]
[Black "Azatic"]
[Result "1-0"]
[WhiteElo "2387"]
[BlackElo "2630"]
[TimeControl "180+1"]
[EndTime "10:17:57 PDT"]
[Termination "r31415 won by checkmate"]

1. e4 {[%clk 0:03:00.3]} 1... c5 {[%clk 0:02:58.7]} 2. Nf3 {[%clk 0:02:59.5]}
2... e6 {[%clk 0:02:54]} 3. d4 {[%clk 0:02:59.7]} 3... cxd4 {[%clk 0:02:54.3]}
4. Nxd4 {[%clk 0:03:00.6]} 4... a6 {[%clk 0:02:54.7]} 5. c4 {[%clk 0:02:57.2]}
5... Qc7 {[%clk 0:02:54.8]} 6. Nc3 {[%clk 0:02:56.5]} 6... Nf6 {[%clk
0:02:55.2]} 7. a3 {[%clk 0:02:56.4]} 7... Be7 {[%clk 0:02:55]} 8. Bd3 {[%clk
0:02:54]} 8... b6 {[%clk 0:02:54.5]} 9. O-O {[%clk 0:02:53.6]} 9... Bb7 {[%clk
0:02:54.8]} 10. Qe1 {[%clk 0:02:50.4]} 10... d6 {[%clk 0:02:52.2]} 11. b4 {[%clk
0:02:50.1]} 11... Nbd7 {[%clk 0:02:50.5]} 12. f4 {[%clk 0:02:45]} 12... b5
{[%clk 0:02:49.6]} 13. cxb5 {[%clk 0:02:44]} 13... O-O {[%clk 0:02:34.7]} 14.
Bb2 {[%clk 0:02:36.8]} 14... axb5 {[%clk 0:02:23]} 15. Bxb5 {[%clk 0:02:21.1]}
15... Qb6 {[%clk 0:02:17.9]} 16. Na4 {[%clk 0:02:16.9]} 16... Rxa4 {[%clk
0:02:13.7]} 17. Bxa4 {[%clk 0:02:15.9]} 17... e5 {[%clk 0:02:14]} 18. Qe3 {[%clk
0:02:02.5]} 18... exd4 {[%clk 0:01:47.2]} 19. Bxd4 {[%clk 0:02:01]} 19... Qa6
{[%clk 0:01:45.9]} 20. Bxd7 {[%clk 0:01:49.2]} 20... Nxd7 {[%clk 0:01:46.8]} 21.
Qg3 {[%clk 0:01:41]} 21... Nf6 {[%clk 0:01:37]} 22. e5 {[%clk 0:01:37.2]} 22...
Ne4 {[%clk 0:01:26.4]} 23. Qg4 {[%clk 0:01:29.6]} 23... dxe5 {[%clk 0:01:23.3]}
24. fxe5 {[%clk 0:01:24]} 24... g6 {[%clk 0:00:43.9]} 25. e6 {[%clk 0:01:07.4]}
25... f5 {[%clk 0:00:35.7]} 26. Qf4 {[%clk 0:00:53]} 26... Qxe6 {[%clk
0:00:32.9]} 27. Qc7 {[%clk 0:00:51.9]} 27... Ba6 {[%clk 0:00:27.8]} 28. Rfe1
{[%clk 0:00:45.6]} 28... Rc8 {[%clk 0:00:27.2]} 29. Qa7 {[%clk 0:00:41.2]} 29...
Bf6 {[%clk 0:00:19.3]} 30. Rac1 {[%clk 0:00:35.9]} 30... Rd8 {[%clk 0:00:14.5]}
31. Red1 {[%clk 0:00:30.8]} 31... Bg5 {[%clk 0:00:12.6]} 32. Qg7# {[%clk
0:00:28.5]} 1-0

[Event "*** Titled Tuesday Blitz"]
[Site "Chess.com"]
[Date "2020.05.05"]
[Round "2"]
[White "okriak"]
[Black "Katheksis"]
[Result "1-0"]
[WhiteElo "2823"]
[BlackElo "2438"]
[TimeControl "180+1"]
[EndTime "10:17:57 PDT"]
[Termination "okriak won by checkmate"]

1. Nf3 {[%clk 0:03:00.9]} 1... d5 {[%clk 0:02:59.7]} 2. e3 {[%clk 0:03:00.5]}
2... Nf6 {[%clk 0:02:57.7]} 3. c4 {[%clk 0:03:00.8]} 3... c6 {[%clk 0:02:57.8]}
4. Nc3 {[%clk 0:02:59.3]} 4... g6 {[%clk 0:02:53]} 5. d4 {[%clk 0:02:59]} 5...
Bg7 {[%clk 0:02:52.5]} 6. Be2 {[%clk 0:02:59.7]} 6... O-O {[%clk 0:02:52.5]} 7.
O-O {[%clk 0:02:59.7]} 7... Bg4 {[%clk 0:02:51.4]} 8. cxd5 {[%clk 0:02:59.3]}
8... cxd5 {[%clk 0:02:51.1]} 9. Qb3 {[%clk 0:02:59]} 9... Bc8 {[%clk 0:02:48]}
10. Ne5 {[%clk 0:02:57.6]} 10... b6 {[%clk 0:02:42.5]} 11. Bd2 {[%clk
0:02:53.9]} 11... Bb7 {[%clk 0:02:42.3]} 12. Rfc1 {[%clk 0:02:52.9]} 12... Nfd7
{[%clk 0:02:38]} 13. Nxd7 {[%clk 0:02:44]} 13... Qxd7 {[%clk 0:02:35.3]} 14. a3
{[%clk 0:02:30.1]} 14... Rc8 {[%clk 0:02:24.1]} 15. a4 {[%clk 0:02:23.8]} 15...
e6 {[%clk 0:02:19]} 16. a5 {[%clk 0:02:23.4]} 16... bxa5 {[%clk 0:02:17.3]} 17.
Na4 {[%clk 0:02:21.7]} 17... Na6 {[%clk 0:01:39.7]} 18. Bxa5 {[%clk 0:02:00.3]}
18... Rab8 {[%clk 0:01:23.6]} 19. Qd1 {[%clk 0:01:48.3]} 19... Rxc1 {[%clk
0:01:16]} 20. Rxc1 {[%clk 0:01:47.4]} 20... Rc8 {[%clk 0:01:11.9]} 21. Rxc8+
{[%clk 0:01:45]} 21... Qxc8 {[%clk 0:01:09.4]} 22. b4 {[%clk 0:01:42.9]} 22...
Bf8 {[%clk 0:00:54.6]} 23. Nc5 {[%clk 0:01:39.4]} 23... Nxc5 {[%clk 0:00:50.8]}
24. dxc5 {[%clk 0:01:29.5]} 24... Qc6 {[%clk 0:00:42.8]} 25. Qd3 {[%clk
0:01:20.6]} 25... a6 {[%clk 0:00:38.1]} 26. h4 {[%clk 0:01:15.6]} 26... Qa4
{[%clk 0:00:29.8]} 27. Qc3 {[%clk 0:01:07.1]} 27... Bg7 {[%clk 0:00:20.6]} 28.
Qc1 {[%clk 0:01:03.8]} 28... d4 {[%clk 0:00:18]} 29. exd4 {[%clk 0:00:57.8]}
29... Bxd4 {[%clk 0:00:18.9]} 30. Bf1 {[%clk 0:00:43.3]} 30... Qb3 {[%clk
0:00:18]} 31. Qf4 {[%clk 0:00:39.3]} 31... Qd5 {[%clk 0:00:17.1]} 32. h5 {[%clk
0:00:35]} 32... e5 {[%clk 0:00:17.4]} 33. Qg5 {[%clk 0:00:34]} 33... Kg7 {[%clk
0:00:16.5]} 34. h6+ {[%clk 0:00:33.9]} 34... Kf8 {[%clk 0:00:16.9]} 35. Bd8
{[%clk 0:00:32.8]} 35... e4 {[%clk 0:00:16.9]} 36. Qe7+ {[%clk 0:00:32.2]} 36...
Kg8 {[%clk 0:00:17.3]} 37. Qe8# {[%clk 0:00:32.4]} 1-0

[Event "*** Titled Tuesday Blitz"]
[Site "Chess.com"]
[Date "2020.05.05"]
[Round "2"]
[White "lamomiablanca"]
[Black "elohunter1999"]
[Result "0-1"]
[WhiteElo "2118"]
[BlackElo "2497"]
[TimeControl "180+1"]
[EndTime "10:17:57 PDT"]
[Termination "elohunter1999 won on time"]

1. Nf3 {[%clk 0:02:59.8]} 1... c5 {[%clk 0:02:59.8]} 2. e4 {[%clk 0:02:55.4]}
2... Nc6 {[%clk 0:02:59.3]} 3. d4 {[%clk 0:02:53.3]} 3... cxd4 {[%clk
0:03:00.2]} 4. Nxd4 {[%clk 0:02:53.5]} 4... Nf6 {[%clk 0:03:00.5]} 5. Nc3 {[%clk
0:02:53.6]} 5... e5 {[%clk 0:03:01.1]} 6. Ndb5 {[%clk 0:02:53.5]} 6... d6 {[%clk
0:03:01]} 7. Bg5 {[%clk 0:02:53.5]} 7... a6 {[%clk 0:03:01.3]} 8. Na3 {[%clk
0:02:53.7]} 8... b5 {[%clk 0:03:01.8]} 9. Nd5 {[%clk 0:02:53.7]} 9... Be7 {[%clk
0:03:01.2]} 10. Bxf6 {[%clk 0:02:53.8]} 10... Bxf6 {[%clk 0:03:02.1]} 11. c3
{[%clk 0:02:54.3]} 11... Bg5 {[%clk 0:03:01.7]} 12. Nc2 {[%clk 0:02:54]} 12...
Rb8 {[%clk 0:03:01.8]} 13. Qd3 {[%clk 0:02:47]} 13... O-O {[%clk 0:02:58.2]} 14.
g3 {[%clk 0:02:47.2]} 14... Ne7 {[%clk 0:02:49]} 15. Ncb4 {[%clk 0:02:45.3]}
15... Bb7 {[%clk 0:02:44.2]} 16. Nxe7+ {[%clk 0:02:44.5]} 16... Qxe7 {[%clk
0:02:43]} 17. h4 {[%clk 0:02:43.1]} 17... Bh6 {[%clk 0:02:34.9]} 18. Nd5 {[%clk
0:02:41.2]} 18... Bxd5 {[%clk 0:02:20.3]} 19. Qxd5 {[%clk 0:02:39.5]} 19... Kh8
{[%clk 0:02:15.6]} 20. Bh3 {[%clk 0:02:36.3]} 20... a5 {[%clk 0:02:12.6]} 21. a3
{[%clk 0:02:35.4]} 21... g6 {[%clk 0:02:09.5]} 22. h5 {[%clk 0:02:33]} 22... Kg7
{[%clk 0:02:07.8]} 23. hxg6 {[%clk 0:02:28.1]} 23... hxg6 {[%clk 0:02:08.7]} 24.
Rd1 {[%clk 0:02:20.2]} 24... Rb6 {[%clk 0:02:07]} 25. Kf1 {[%clk 0:02:18.3]}
25... f5 {[%clk 0:02:01.9]} 26. Kg2 {[%clk 0:02:18.1]} 26... Qf6 {[%clk
0:01:54.3]} 27. exf5 {[%clk 0:01:39.8]} 27... gxf5 {[%clk 0:01:55.2]} 28. Qf3
{[%clk 0:01:31.6]} 28... e4 {[%clk 0:01:51.4]} 29. Qe2 {[%clk 0:01:30.1]} 29...
f4 {[%clk 0:01:36.1]} 30. Qxe4 {[%clk 0:01:07.8]} 30... fxg3 {[%clk 0:01:35.5]}
31. f3 {[%clk 0:01:05.3]} 31... b4 {[%clk 0:01:26.6]} 32. axb4 {[%clk
0:01:04.1]} 32... axb4 {[%clk 0:01:25.4]} 33. Rhe1 {[%clk 0:00:33.2]} 33... bxc3
{[%clk 0:01:17.2]} 34. Qe7+ {[%clk 0:00:31.5]} 34... Qxe7 {[%clk 0:01:07.1]} 35.
Rxe7+ {[%clk 0:00:30.6]} 35... Rf7 {[%clk 0:01:07.7]} 36. Rxf7+ {[%clk
0:00:26.2]} 36... Kxf7 {[%clk 0:01:08.6]} 37. bxc3 {[%clk 0:00:26.5]} 37... Bf4
{[%clk 0:01:08.8]} 38. Bf5 {[%clk 0:00:15.5]} 38... Rb2+ {[%clk 0:01:06.6]} 39.
Kh3 {[%clk 0:00:15.6]} 39... Rh2+ {[%clk 0:00:59.1]} 40. Kg4 {[%clk 0:00:15.5]}
40... g2 {[%clk 0:00:59.8]} 41. Kxf4 {[%clk 0:00:05.5]} 41... Rh1 {[%clk
0:00:59.5]} 0-1

[Event "*** Titled Tuesday Blitz"]
[Site "Chess.com"]
[Date "2020.05.05"]
[Round "2"]
[White "DinaBelenkaya"]
[Black "PaulfromSPb"]
[Result "0-1"]
[WhiteElo "2133"]
[BlackElo "2603"]
[TimeControl "180+1"]
[EndTime "10:17:59 PDT"]
[Termination "PaulfromSPb won on time"]

1. e4 {[%clk 0:03:00.9]} 1... c5 {[%clk 0:02:59]} 2. Nf3 {[%clk 0:02:56.6]} 2...
d6 {[%clk 0:02:57.5]} 3. Bb5+ {[%clk 0:02:49.7]} 3... Nd7 {[%clk 0:02:56.1]} 4.
c3 {[%clk 0:02:49.1]} 4... Nf6 {[%clk 0:02:55.5]} 5. Qe2 {[%clk 0:02:45.9]} 5...
a6 {[%clk 0:02:52.5]} 6. Ba4 {[%clk 0:02:45.5]} 6... b5 {[%clk 0:02:51.9]} 7.
Bc2 {[%clk 0:02:45.5]} 7... e5 {[%clk 0:02:52]} 8. O-O {[%clk 0:02:41.9]} 8...
Bb7 {[%clk 0:02:51.3]} 9. d4 {[%clk 0:02:37.1]} 9... Be7 {[%clk 0:02:34.4]} 10.
d5 {[%clk 0:02:26.7]} 10... O-O {[%clk 0:02:32.9]} 11. Nbd2 {[%clk 0:02:25.6]}
11... Re8 {[%clk 0:02:30.2]} 12. b3 {[%clk 0:02:23]} 12... Bf8 {[%clk
0:02:29.7]} 13. Rd1 {[%clk 0:02:21.1]} 13... Qc7 {[%clk 0:02:28.6]} 14. a4
{[%clk 0:02:18.7]} 14... Qb6 {[%clk 0:02:22.2]} 15. a5 {[%clk 0:02:13.1]} 15...
Qc7 {[%clk 0:02:21]} 16. Nf1 {[%clk 0:02:11.3]} 16... g6 {[%clk 0:02:18.9]} 17.
h3 {[%clk 0:02:05.1]} 17... Rab8 {[%clk 0:02:12.5]} 18. g4 {[%clk 0:02:04.6]}
18... b4 {[%clk 0:02:10.4]} 19. c4 {[%clk 0:02:04.1]} 19... h5 {[%clk
0:01:48.6]} 20. Ng5 {[%clk 0:01:58.2]} 20... Bg7 {[%clk 0:01:41.7]} 21. Kh1
{[%clk 0:01:52.1]} 21... Nf8 {[%clk 0:01:41]} 22. Ng3 {[%clk 0:01:42.1]} 22...
hxg4 {[%clk 0:01:39.7]} 23. hxg4 {[%clk 0:01:39.8]} 23... N6h7 {[%clk
0:01:36.7]} 24. Kg2 {[%clk 0:01:34.6]} 24... Qe7 {[%clk 0:01:34]} 25. Nxh7
{[%clk 0:01:30.3]} 25... Nxh7 {[%clk 0:01:34.9]} 26. Rh1 {[%clk 0:01:29.4]}
26... Bf6 {[%clk 0:01:27.2]} 27. Rh2 {[%clk 0:01:01.7]} 27... Bg5 {[%clk
0:01:22.1]} 28. Bxg5 {[%clk 0:00:20.7]} 28... Qxg5 {[%clk 0:01:23]} 29. Rah1
{[%clk 0:00:20.7]} 29... Nf6 {[%clk 0:01:21.6]} 30. Bd1 {[%clk 0:00:16.4]} 30...
Kg7 {[%clk 0:01:19.7]} 31. Qe3 {[%clk 0:00:15.9]} 31... Qxe3 {[%clk 0:01:08.3]}
32. fxe3 {[%clk 0:00:16.8]} 32... Rh8 {[%clk 0:01:06.5]} 33. Nf1 {[%clk
0:00:04.5]} 33... Nxe4 {[%clk 0:01:01.9]} 34. Rxh8 {[%clk 0:00:02.5]} 34... Rxh8
{[%clk 0:01:01.1]} 35. Rxh8 {[%clk 0:00:02.3]} 35... Kxh8 {[%clk 0:01:02]} 36.
Kf3 {[%clk 0:00:01.3]} 36... Ng5+ {[%clk 0:00:56.8]} 37. Kg3 {[%clk 0:00:01.2]}
37... Bc8 {[%clk 0:00:46.3]} 0-1

[Event "*** Titled Tuesday Blitz"]
[Site "Chess.com"]
[Date "2020.05.05"]
[Round "2"]
[White "josiwales"]
[Black "Onischuk_V"]
[Result "0-1"]
[WhiteElo "2693"]
[BlackElo "2680"]
[TimeControl "180+1"]
[EndTime "10:18:00 PDT"]
[Termination "Onischuk_V won by resignation"]

1. e4 {[%clk 0:03:00.9]} 1... d6 {[%clk 0:02:59.7]} 2. d4 {[%clk 0:03:00]} 2...
Nf6 {[%clk 0:03:00.3]} 3. Nc3 {[%clk 0:02:57.9]} 3... g6 {[%clk 0:03:00.8]} 4.
f4 {[%clk 0:02:49.1]} 4... Bg7 {[%clk 0:03:00.3]} 5. Nf3 {[%clk 0:02:50]} 5...
O-O {[%clk 0:03:00.7]} 6. Be2 {[%clk 0:02:43.9]} 6... Na6 {[%clk 0:02:54.7]} 7.
O-O {[%clk 0:02:43.5]} 7... c5 {[%clk 0:02:53]} 8. Kh1 {[%clk 0:02:41.6]} 8...
cxd4 {[%clk 0:02:51.6]} 9. Nxd4 {[%clk 0:02:42.5]} 9... Nc5 {[%clk 0:02:48.6]}
10. Bf3 {[%clk 0:02:42.9]} 10... a6 {[%clk 0:02:41.7]} 11. Be3 {[%clk
0:02:42.6]} 11... Qc7 {[%clk 0:02:41.7]} 12. Qd2 {[%clk 0:02:42]} 12... e5
{[%clk 0:02:38.8]} 13. Nde2 {[%clk 0:02:36.9]} 13... b5 {[%clk 0:02:28.9]} 14.
Rad1 {[%clk 0:02:34.1]} 14... Bb7 {[%clk 0:01:35.5]} 15. Qxd6 {[%clk 0:02:25.8]}
15... Qxd6 {[%clk 0:01:32.6]} 16. Rxd6 {[%clk 0:02:26.6]} 16... Rac8 {[%clk
0:01:24.5]} 17. fxe5 {[%clk 0:02:12]} 17... Nfxe4 {[%clk 0:01:23.4]} 18. Nxe4
{[%clk 0:01:25.3]} 18... Bxe4 {[%clk 0:01:18.1]} 19. Bd4 {[%clk 0:01:16.7]}
19... Bxc2 {[%clk 0:01:11.7]} 20. Nc3 {[%clk 0:01:09.5]} 20... Ne6 {[%clk
0:01:10.2]} 21. Bg4 {[%clk 0:01:04.5]} 21... h5 {[%clk 0:00:58.1]} 22. Bh3
{[%clk 0:00:51.2]} 22... Rc4 {[%clk 0:00:53.8]} 23. Rxf7 {[%clk 0:00:33.6]}
23... Nxd4 {[%clk 0:00:49.8]} 24. Rxf8+ {[%clk 0:00:30.5]} 24... Bxf8 {[%clk
0:00:49.6]} 25. Rd8 {[%clk 0:00:28.6]} 25... Bf5 {[%clk 0:00:47.9]} 26. Bxf5
{[%clk 0:00:24]} 26... gxf5 {[%clk 0:00:47.9]} 27. g3 {[%clk 0:00:22.8]} 27...
Ne6 {[%clk 0:00:47.4]} 28. Ra8 {[%clk 0:00:21.2]} 28... b4 {[%clk 0:00:45]} 29.
Nd5 {[%clk 0:00:20.9]} 29... Rd4 {[%clk 0:00:41.5]} 30. Nf6+ {[%clk 0:00:20]}
30... Kf7 {[%clk 0:00:41.5]} 31. Rxa6 {[%clk 0:00:18.6]} 31... h4 {[%clk
0:00:40.5]} 32. Kg2 {[%clk 0:00:17.7]} 32... hxg3 {[%clk 0:00:40.5]} 33. hxg3
{[%clk 0:00:18.6]} 33... Be7 {[%clk 0:00:40.8]} 34. Ra7 {[%clk 0:00:18.2]} 34...
Rd2+ {[%clk 0:00:40]} 35. Kh3 {[%clk 0:00:17.8]} 35... Ng5+ {[%clk 0:00:37.4]}
36. Kh4 {[%clk 0:00:16.1]} 36... Kg6 {[%clk 0:00:38]} 37. g4 {[%clk 0:00:12.5]}
37... f4 {[%clk 0:00:37.9]} 0-1

[Event "*** Titled Tuesday Blitz"]
[Site "Chess.com"]
[Date "2020.05.05"]
[Round "2"]
[White "DrVelja"]
[Black "ARMQUEEN"]
[Result "1-0"]
[WhiteElo "2641"]
[BlackElo "2350"]
[TimeControl "180+1"]
[EndTime "10:18:02 PDT"]
[Termination "DrVelja won by resignation"]

1. e4 {[%clk 0:03:00.9]} 1... e5 {[%clk 0:02:58.8]} 2. Nf3 {[%clk 0:02:58.3]}
2... Nf6 {[%clk 0:02:58.2]} 3. d4 {[%clk 0:02:56]} 3... Nxe4 {[%clk 0:02:57]} 4.
dxe5 {[%clk 0:02:56.4]} 4... d5 {[%clk 0:02:56.4]} 5. Nbd2 {[%clk 0:02:55.9]}
5... Nc5 {[%clk 0:02:56.2]} 6. Nb3 {[%clk 0:02:56.1]} 6... Ne6 {[%clk
0:02:56.1]} 7. Nbd4 {[%clk 0:02:54.8]} 7... c5 {[%clk 0:02:54.9]} 8. Bb5+ {[%clk
0:02:43.8]} 8... Bd7 {[%clk 0:02:55.1]} 9. Nxe6 {[%clk 0:02:43.4]} 9... fxe6
{[%clk 0:02:48.9]} 10. Bd3 {[%clk 0:02:41.6]} 10... c4 {[%clk 0:02:46.8]} 11.
Be2 {[%clk 0:02:30.6]} 11... Nc6 {[%clk 0:02:46.2]} 12. Be3 {[%clk 0:02:18.5]}
12... Qc7 {[%clk 0:02:42.3]} 13. O-O {[%clk 0:02:14.9]} 13... Nxe5 {[%clk
0:02:39.7]} 14. Nxe5 {[%clk 0:02:15.8]} 14... Qxe5 {[%clk 0:02:39.4]} 15. Bh5+
{[%clk 0:02:16.4]} 15... Kd8 {[%clk 0:02:30.4]} 16. Re1 {[%clk 0:02:15.9]} 16...
Qd6 {[%clk 0:02:18.5]} 17. Bd4 {[%clk 0:02:14.1]} 17... Be7 {[%clk 0:02:06.1]}
18. Bxg7 {[%clk 0:02:05.4]} 18... Rg8 {[%clk 0:02:05.1]} 19. Be5 {[%clk
0:02:05.5]} 19... Qc6 {[%clk 0:02:04.5]} 20. Bf7 {[%clk 0:01:29.2]} 20... Rf8
{[%clk 0:02:00.4]} 21. Qh5 {[%clk 0:01:29.3]} 21... Bd6 {[%clk 0:01:44.1]} 22.
Bg7 {[%clk 0:01:10.7]} 22... Kc7 {[%clk 0:01:10.7]} 23. Bxf8 {[%clk 0:01:09.2]}
23... Rxf8 {[%clk 0:01:11.6]} 24. Bxe6 {[%clk 0:01:09.8]} 24... Bc5 {[%clk
0:00:34.3]} 25. Bxd7 {[%clk 0:00:49.2]} 25... Bxf2+ {[%clk 0:00:31.2]} 26. Kh1
{[%clk 0:00:49.3]} 26... Qxd7 {[%clk 0:00:29.1]} 27. Qe5+ {[%clk 0:00:44.4]}
27... Kc8 {[%clk 0:00:26.1]} 28. Rf1 {[%clk 0:00:32.4]} 28... Rf5 {[%clk
0:00:20.3]} 29. Qe2 {[%clk 0:00:26.1]} 29... Qf7 {[%clk 0:00:20]} 30. Rad1
{[%clk 0:00:21.3]} 30... Bc5 {[%clk 0:00:18.8]} 31. Qg4 {[%clk 0:00:19.1]} 1-0

[Event "*** Titled Tuesday Blitz"]
[Site "Chess.com"]
[Date "2020.05.05"]
[Round "2"]
[White "tarantul1"]
[Black "Trickov"]
[Result "1-0"]
[WhiteElo "2588"]
[BlackElo "2300"]
[TimeControl "180+1"]
[EndTime "10:18:05 PDT"]
[Termination "tarantul1 won on time"]

1. e4 {[%clk 0:03:00.9]} 1... c5 {[%clk 0:02:59.1]} 2. Nf3 {[%clk 0:03:00.5]}
2... d6 {[%clk 0:02:59]} 3. d4 {[%clk 0:03:00.5]} 3... Nf6 {[%clk 0:02:59.4]} 4.
Nc3 {[%clk 0:03:00.5]} 4... cxd4 {[%clk 0:02:58.9]} 5. Nxd4 {[%clk 0:03:01.4]}
5... a6 {[%clk 0:02:59]} 6. h3 {[%clk 0:03:00.7]} 6... e5 {[%clk 0:02:58.7]} 7.
Nde2 {[%clk 0:03:00.6]} 7... b5 {[%clk 0:02:58.9]} 8. g4 {[%clk 0:02:59.8]} 8...
Bb7 {[%clk 0:02:59]} 9. Bg2 {[%clk 0:02:59.8]} 9... Nbd7 {[%clk 0:02:58.9]} 10.
O-O {[%clk 0:02:58.8]} 10... Nb6 {[%clk 0:02:58.6]} 11. Ng3 {[%clk 0:02:40.9]}
11... Rc8 {[%clk 0:02:52.7]} 12. g5 {[%clk 0:01:49.2]} 12... Nfd7 {[%clk
0:02:48.3]} 13. h4 {[%clk 0:01:43.4]} 13... Qc7 {[%clk 0:02:41.6]} 14. a3 {[%clk
0:01:33.4]} 14... g6 {[%clk 0:02:29.4]} 15. Qe2 {[%clk 0:01:25.8]} 15... Bg7
{[%clk 0:02:22.2]} 16. h5 {[%clk 0:01:25.8]} 16... O-O {[%clk 0:02:02.2]} 17. h6
{[%clk 0:01:22.9]} 17... Bh8 {[%clk 0:02:01.6]} 18. Rd1 {[%clk 0:01:23.8]} 18...
Nc4 {[%clk 0:01:38]} 19. Nd5 {[%clk 0:01:08.8]} 19... Bxd5 {[%clk 0:01:35.2]}
20. exd5 {[%clk 0:01:09.7]} 20... f5 {[%clk 0:01:27.5]} 21. gxf6 {[%clk
0:01:10.6]} 21... Bxf6 {[%clk 0:01:24.2]} 22. Bh3 {[%clk 0:01:11.5]} 22... Kh8
{[%clk 0:01:22.1]} 23. Ne4 {[%clk 0:01:10.8]} 23... Ncb6 {[%clk 0:01:12.6]} 24.
c3 {[%clk 0:01:01.4]} 24... Rcd8 {[%clk 0:01:05.4]} 25. Bg5 {[%clk 0:01:00.3]}
25... Nc5 {[%clk 0:00:40.9]} 26. Bxf6+ {[%clk 0:00:58.1]} 26... Rxf6 {[%clk
0:00:25.2]} 27. Nxf6 {[%clk 0:00:59]} 27... Qe7 {[%clk 0:00:18.6]} 28. Ne4
{[%clk 0:00:45.5]} 28... Qh4 {[%clk 0:00:18.2]} 29. Bg2 {[%clk 0:00:41.2]} 29...
Nbd7 {[%clk 0:00:11.3]} 30. Nxd6 {[%clk 0:00:39.5]} 30... Rf8 {[%clk 0:00:09.4]}
31. Ne4 {[%clk 0:00:35.4]} 31... Qxh6 {[%clk 0:00:08.1]} 32. Nxc5 {[%clk
0:00:35.2]} 32... Nxc5 {[%clk 0:00:07.6]} 33. Qxe5+ {[%clk 0:00:35.1]} 33... Kg8
{[%clk 0:00:05.3]} 34. d6 {[%clk 0:00:34.5]} 34... Qh4 {[%clk 0:00:03.2]} 35.
Qxc5 {[%clk 0:00:33]} 1-0